bitfinex-derivatives/quotes_ETHF0:USTF0_20241231
["timestamp","ask_amount","ask_price","bid_price","bid_amount"]
[1735668898107,0.29724,3369.1,3369.0,0.02938043]
[1735668898309,2.53819425,3369.1,3369.0,0.02938043]
[1735668899599,2.24095425,3369.1,3368.3,3.2078]
[1735668899801,0.29732,3368.2,3368.1,4.67347419]
[1735668900001,2.53827425,3368.2,3368.1,4.67347419]
[1735668900204,5.74607425,3368.2,3368.1,4.67347419]
[1735668901211,5.74607425,3368.2,3368.1,0.0203911]
[1735668903111,5.74607425,3368.2,3368.1,0.02230757]
[1735668905411,5.44875425,3368.2,3367.2,5.11167419]
[1735668905614,5.44875425,3367.7,3367.2,5.11167419]
[1735668905813,0.76038,3367.6,3367.5,0.29738]
[1735668906414,5.44875425,3367.7,3367.6,0.29737]
[1735668906415,3.2078,3367.7,3367.6,0.29737]
[1735668906710,0.29738,3367.6,3367.5,0.29738]
[1735668907108,3.2078,3367.7,3367.2,3.646]
[1735668907309,3.2078,3367.7,3367.6,0.29737]
[1735668907505,3.50516,3367.7,3367.6,0.29737]
[1735668908409,3.2078,3367.7,3367.2,3.646]
[1735668908608,0.29737,3367.6,3367.5,0.29738]
[1735668908907,5.44875425,3367.7,3367.2,3.646]
[1735668909107,2.24095425,3367.4,3367.1,4.67347419]
[1735668909307,2.24095425,3367.4,3366.8,0.002]
[1735668909308,4.9949,3367.3,3366.8,0.002]
[1735668909508,5.44875425,3366.9,3366.7,6.78386906]
[1735668909710,0.74064,3366.8,3366.7,6.78386906]
[1735668910113,0.29744,3366.8,3366.7,6.78386906]
[1735668910307,3.2078,3366.9,3365.8,3.6485]
[1735668910308,0.29749,3366.4,3365.8,3.6485]
[1735668910515,5.44875425,3366.4,3365.8,0.4407]
[1735668910713,0.29752,3366.0,3365.9,0.29752]
[1735668910916,0.2975,3366.2,3366.0,0.29751]
[1735668911106,5.44875425,3366.4,3365.8,0.4407]
[1735668911107,3.2078,3366.4,3366.3,0.29749]
[1735668911327,3.2078,3366.4,3366.1,0.2975]
[1735668911713,3.2078,3366.4,3366.3,0.29749]
[1735668911911,3.50529,3366.4,3365.8,3.6485]
[1735668912115,3.50529,3366.4,3366.3,0.29749]
[1735668912116,3.2078,3366.4,3366.3,0.29749]
[1735668913010,3.2078,3366.4,3365.8,3.6485]
[1735668913212,3.2078,3366.4,3365.9,0.29752]
[1735668913412,0.2975,3366.3,3365.9,0.29752]
[1735668913619,0.2975,3366.2,3365.9,0.29751]
[1735668913811,0.29749,3366.3,3366.0,0.29751]
[1735668914116,3.2078,3366.4,3365.8,0.4407]
[1735668914313,3.2078,3366.4,3366.3,0.29749]
[1735668915018,5.44875425,3367.0,3366.0,3.2078]
[1735668915213,3.2078,3366.6,3366.0,3.2078]
[1735668915519,3.2078,3366.6,3365.9,1.35]
[1735668915812,0.29748,3366.4,3366.1,0.2975]
[1735668916013,0.29749,3366.4,3366.1,0.2975]
[1735668916218,0.29749,3366.3,3366.1,0.2975]
[1735668916420,3.50527,3366.6,3366.3,0.29748]
[1735668916717,3.2078,3366.6,3366.4,0.4236]
[1735668917015,3.50523,3367.0,3366.8,0.29744]
[1735668917216,3.2078,3367.0,3366.9,0.29743]
[1735668917616,3.50523,3367.0,3366.5,0.9019]
[1735668917808,0.29744,3366.9,3366.7,0.29745]
[1735668918415,0.29743,3366.9,3366.5,1.19936]
[1735668918717,0.29744,3366.9,3366.7,0.29745]
[1735668919018,3.2078,3367.0,3366.5,0.9019]
[1735668919323,0.29744,3366.9,3366.7,0.29745]
[1735668920614,0.29745,3366.8,3366.6,0.29746]
[1735668921024,0.29745,3366.8,3366.7,0.29745]
[1735668921322,0.29744,3366.9,3366.7,0.29745]
[1735668922621,3.2078,3367.0,3366.5,0.4456]
[1735668922821,5.44875425,3367.0,3366.4,0.4236]
[1735668923017,0.4198,3366.9,3366.4,0.4236]
[1735668923219,0.29747,3366.5,3366.4,0.4236]
[1735668925225,0.29746,3366.6,3366.2,0.29749]
[1735668925424,0.29748,3366.5,3366.3,0.29748]
[1735668925618,2.24095425,3366.7,3366.3,0.29749]
[1735668925819,0.29749,3366.3,3366.2,0.29749]
[1735668926314,0.4198,3366.9,3366.1,0.439]
[1735668926522,0.2975,3366.2,3366.1,0.73651]
[1735668927120,3.2078,3366.6,3366.1,0.73651]
[1735668927327,0.29749,3366.3,3366.1,0.73651]
[1735668927528,0.29749,3366.3,3366.2,0.2975]
[1735668928417,3.2078,3366.6,3366.1,0.439]
[1735668928727,0.2975,3366.2,3366.1,0.439]
[1735668930825,0.29754,3365.8,3365.5,3.2078]
[1735668931034,2.24095425,3366.1,3365.5,3.50535]
[1735668931232,0.29755,3365.6,3365.5,3.2078]
[1735668931825,2.24095425,3365.8,3365.3,1.17197]
[1735668932122,0.29755,3365.6,3365.4,0.29756]
[1735668932324,0.8899,3365.7,3364.8,0.74405]
[1735668932636,0.4504,3365.7,3365.0,4.0822]
[1735668932826,3.2078,3365.8,3365.0,6.32315425]
[1735668933341,3.6582,3366.2,3365.6,2.24095425]
[1735668933627,3.2078,3366.2,3366.1,0.29751]
[1735668934330,3.2078,3366.6,3366.2,0.29749]
[1735668934526,0.29747,3366.5,3366.1,0.33999129]
[1735668934829,3.2078,3366.6,3366.1,0.04249129]
[1735668935031,0.29749,3366.3,3366.1,0.33999129]
[1735668935325,0.2975,3366.2,3366.1,0.29751]
[1735668935531,3.2078,3366.6,3365.7,1.3826]
[1735668935532,3.2078,3366.6,3366.2,0.33999129]
[1735668935828,0.29749,3366.3,3366.2,0.04249129]
[1735668937518,2.24095425,3366.5,3366.2,0.06416076]
[1735668937829,0.29749,3366.3,3366.2,0.06416076]
[1735668938622,2.24095425,3366.5,3366.2,0.07054452]
[1735668938828,0.29749,3366.3,3366.2,0.07054452]
[1735668939230,0.29749,3366.3,3366.2,0.36804452]
[1735668939426,0.29748,3366.5,3366.4,0.29747]
[1735668939728,3.2078,3366.6,3366.5,0.29747]
[1735668939932,0.29742,3367.1,3366.6,0.74365]
[1735668940226,0.29742,3367.1,3366.8,0.08485552]
[1735668940430,3.2078,3367.2,3366.8,0.08485552]
[1735668940431,0.29743,3367.0,3366.9,0.29742]
[1735668940619,3.2078,3367.2,3366.8,0.08485552]
[1735668940823,0.29743,3366.9,3366.8,0.38229552]
[1735668941026,0.29743,3366.9,3366.8,0.08485552]
[1735668943834,0.29743,3367.0,3366.8,0.09105245]
[1735668944035,0.29743,3366.9,3366.8,0.09105245]
[1735668946037,0.29751,3366.1,3365.9,0.29752]
[1735668947330,2.98463425,3366.5,3365.8,3.2078]
[1735668947838,0.29751,3366.1,3365.9,0.29752]
[1735668948335,0.29751,3366.1,3365.8,3.2078]
[1735668948628,0.29748,3366.4,3366.2,0.29749]
[1735668948827,0.9142,3366.8,3365.9,0.4231]
[1735668949036,0.29747,3366.6,3366.4,0.29748]
[1735668949223,0.75914,3366.8,3366.7,0.29745]
[1735668949429,0.29746,3366.7,3366.6,0.29746]
[1735668949728,3.84128171,3366.9,3366.2,3.2078]
[1735668949931,0.29746,3366.6,3366.5,0.29747]
[1735668950231,0.29746,3366.7,3366.2,3.2078]
[1735668950432,3.84128171,3366.9,3366.2,3.2078]
[1735668950641,0.29746,3366.6,3366.5,0.29747]
[1735668951027,0.4252,3366.9,3366.3,0.4447]
[1735668951226,0.29746,3366.6,3366.5,0.29747]
[1735668951632,0.29746,3366.7,3366.6,0.29746]
[1735668952530,6.62388171,3367.0,3366.4,0.74369]
[1735668952732,3.41608171,3367.0,3366.9,0.29743]
[1735668953536,3.41608171,3367.2,3367.1,0.29742]
[1735668954034,3.41608171,3367.2,3366.9,0.441]
[1735668954234,3.71349171,3367.2,3367.0,0.29742]
[1735668954434,3.71349171,3367.2,3367.1,0.29742]
[1735668954636,3.41608171,3367.2,3367.1,0.29742]
[1735668955231,0.2974,3367.3,3367.2,0.29741]
[1735668956436,0.2974,3367.3,3367.2,0.31015626]
[1735668956658,0.2974,3367.3,3367.2,0.01274626]
[1735668956942,0.2974,3367.3,3367.2,0.31015626]
[1735668957933,0.2974,3367.3,3367.2,0.01274626]
[1735668958835,0.2974,3367.3,3367.2,0.31015626]
[1735668959135,0.2974,3367.3,3367.2,0.01274626]
[1735668959736,2.53835425,3367.3,3367.2,0.01274626]
[1735668961836,0.29746,3366.6,3366.5,0.29747]
[1735668962139,0.29749,3366.3,3366.2,3.50529]
[1735668963041,2.24095425,3366.7,3366.2,3.2078]
[1735668963340,0.29748,3366.5,3366.4,0.29747]
[1735668964039,0.29748,3366.4,3366.3,0.29748]
[1735668964338,0.29746,3366.7,3366.6,0.29746]
[1735668964537,3.2078,3366.9,3366.6,0.29745]
[1735668964736,0.29744,3366.8,3366.7,0.46]
[1735668965039,4.55477562,3367.1,3367.0,0.29743]
[1735668965736,4.55477562,3367.1,3366.8,0.8999]
[1735668965933,2.24095425,3367.0,3366.8,0.4474]
[1735668966138,0.29743,3366.9,3366.8,0.74484]
[1735668966438,0.29743,3367.0,3366.8,0.74484]
[1735668967140,0.29743,3367.0,3366.9,0.29743]
[1735668967444,0.29743,3367.0,3366.8,0.74484]
[1735668968242,0.29743,3367.0,3366.8,0.4474]
[1735668968438,0.29743,3367.0,3366.9,0.29743]
[1735668968840,3.2078,3367.3,3366.8,0.4474]
[1735668969141,3.2078,3367.3,3367.2,0.29741]
[1735668969344,3.5052,3367.3,3367.2,0.29741]
[1735668970246,3.2078,3367.3,3367.2,0.29741]
[1735668970748,6.66431763,3367.7,3367.6,0.29737]
[1735668971147,3.45651763,3367.7,3367.6,0.29737]
[1735668971446,4.55477562,3367.9,3367.8,0.29736]
[1735668971447,3.45651763,3367.9,3367.8,0.29736]
[1735668972837,0.4587,3368.3,3367.6,0.4273]
[1735668973043,2.24095425,3368.2,3367.6,0.4273]
[1735668973347,0.29736,3367.8,3367.7,0.29736]
[1735668973757,0.29735,3367.9,3367.7,0.29736]
[1735668973944,0.448,3368.1,3367.6,0.4273]
[1735668974253,0.29736,3367.7,3367.6,0.4273]
[1735668974544,3.6558,3368.1,3367.6,0.4273]
[1735668974545,0.29735,3367.9,3367.6,0.4273]
[1735668974737,0.4587,3368.3,3367.6,0.4273]
[1735668974943,0.29733,3368.1,3367.9,0.29734]
[1735668975143,0.4587,3368.3,3367.6,0.4273]
[1735668975545,0.75601,3368.3,3368.2,0.29732]
[1735668975746,3.2078,3368.5,3368.4,0.2973]
[1735668976647,5.44875425,3368.5,3368.0,0.4446]
[1735668976851,2.53828425,3368.1,3368.0,0.4446]
[1735668977146,2.53828425,3368.1,3367.5,0.456]
[1735668977147,0.29735,3367.9,3367.7,0.29736]
[1735668977352,0.442,3368.0,3367.7,0.29736]
[1735668977545,0.29736,3367.7,3367.4,3.6524]
[1735668977746,0.29736,3367.7,3367.5,0.29737]
[1735668977938,0.29736,3367.7,3367.6,0.72467]
[1735668978339,0.29736,3367.8,3367.6,0.72467]
[1735668978944,0.29735,3367.9,3367.7,0.29736]
[1735668979346,0.29735,3367.9,3367.8,0.29736]
[1735668980055,0.442,3368.0,3367.6,0.4273]
[1735668980251,0.29736,3367.8,3367.4,3.6524]
[1735668980547,0.29738,3367.6,3367.5,0.29738]
[1735668981145,0.29737,3367.7,3367.6,0.29737]
[1735668981554,0.29738,3367.6,3367.5,0.29738]
[1735668981745,0.29738,3367.5,3367.4,0.74199]
[1735668982054,0.442,3368.0,3367.4,0.4446]
[1735668982550,0.442,3368.0,3367.5,0.73327]
[1735668982950,0.29737,3367.6,3367.5,0.4359]
[1735668983254,0.442,3368.0,3367.5,0.4359]
[1735668983456,0.29735,3367.9,3367.8,0.29735]
[1735668983651,0.442,3368.0,3367.9,0.29735]
[1735668983852,5.44875425,3368.1,3367.0,3.2078]
[1735668984054,3.45651763,3368.2,3367.0,0.29742]
[1735668984055,0.29742,3367.2,3367.0,0.29742]
[1735668984355,3.2078,3367.4,3366.6,3.2078]
[1735668984653,3.6923708,3368.2,3366.6,3.2078]
[1735668984654,0.4276,3367.5,3367.3,0.2974]
[1735668984850,0.29739,3367.4,3367.3,0.2974]
[1735668985066,0.4276,3367.5,3367.1,0.4609]
[1735668985356,0.29739,3367.4,3367.3,0.2974]
[1735668985654,0.29739,3367.5,3367.1,0.4609]
[1735668985854,0.29739,3367.5,3367.4,0.29739]
[1735668986456,3.2078,3367.8,3367.7,0.29736]
[1735668986751,3.45651763,3368.0,3367.9,0.29735]
[1735668986957,3.45651763,3368.0,3367.9,3.50515]
[1735668987546,3.45651763,3368.0,3367.9,3.51793824]
[1735668987753,3.45651763,3368.0,3367.9,0.01278824]
[1735668987754,3.2078,3368.0,3367.9,0.01278824]
[1735668987951,3.50514,3368.0,3367.9,0.01278824]
[1735668988157,3.50514,3368.0,3367.1,7.00217218]
[1735668988158,3.2078,3368.0,3367.1,7.00217218]
[1735668988357,0.29741,3367.2,3367.1,7.00217218]
[1735668989168,0.423,3367.3,3366.7,0.4245]
[1735668989362,2.24095425,3367.1,3366.7,0.4245]
[1735668989562,0.29744,3366.9,3366.8,0.29744]
[1735668989760,0.29744,3366.8,3366.7,0.72195]
[1735668989961,0.29744,3366.8,3366.7,0.4245]
[1735668990971,2.24095425,3367.1,3366.8,0.29744]
[1735668991160,0.29743,3367.0,3366.7,0.4245]
[1735668991355,0.29743,3367.0,3366.9,0.29743]
[1735668992169,2.24095425,3367.1,3366.7,0.4245]
[1735668992369,3.2078,3367.2,3366.7,0.4245]
[1735668992370,3.2078,3367.2,3367.1,0.29742]
[1735668992568,3.6495,3367.8,3366.9,3.2078]
[1735668992772,3.45651763,3367.9,3367.8,0.29736]
[1735668992961,3.45651763,3367.9,3367.8,4.85216]
[1735668993660,4.55477562,3368.1,3367.8,9.5548]
[1735668993871,0.4312,3368.8,3368.6,0.29728]
[1735668994061,0.4312,3368.8,3368.3,3.2078]
[1735668994261,0.29728,3368.7,3367.8,4.5548]
[1735668994460,0.29728,3368.7,3368.2,0.29731]
[1735668994664,0.29728,3368.7,3368.0,0.29733]
[1735668994665,0.29732,3368.3,3368.0,0.29733]
[1735668994879,3.2078,3368.5,3367.8,4.5548]
[1735668995169,3.5051,3368.5,3367.8,5.2982]
[1735668995369,3.5051,3368.5,3368.3,0.29731]
[1735668996164,3.2078,3368.5,3367.8,4.5548]
[1735668996365,3.5051,3368.5,3368.3,0.29731]
[1735668997170,3.5051,3368.5,3367.8,4.5548]
[1735668997171,3.2078,3368.5,3367.8,4.5548]
[1735668997373,3.5051,3368.5,3368.3,0.29731]
[1735668998268,0.2973,3368.4,3368.2,0.29731]
[1735668998466,3.5051,3368.5,3368.3,0.29731]
[1735668998967,3.2078,3368.5,3367.8,4.5548]
[1735668999166,3.2078,3368.5,3368.4,0.2973]
[1735669000069,0.4598,3369.2,3368.8,0.29727]
[1735669000070,3.2078,3369.0,3368.8,0.29727]
[1735669000468,1.20774,3369.2,3368.8,0.29727]
[1735669000668,0.9105,3369.2,3368.8,0.29727]
[1735669000877,0.74793,3369.2,3369.0,0.29725]
[1735669001166,1.18213,3369.2,3368.9,0.29725]
[1735669001366,0.29724,3369.1,3368.9,0.29725]
[1735669001767,1.18214,3369.2,3369.0,0.29725]
[1735669001967,0.8849,3369.2,3368.7,3.2078]
[1735669002171,0.29731,3368.4,3368.1,0.29732]
[1735669002367,0.29729,3368.6,3367.7,13.25180021]
[1735669002567,0.4264,3368.5,3368.4,0.2973]
[1735669002770,0.4264,3369.0,3368.3,0.74329]
[1735669002973,0.4264,3369.0,3368.6,3.2078]
[1735669003274,0.29726,3368.9,3368.6,3.50508]
[1735669003476,0.29726,3368.9,3368.7,0.29728]
[1735669003669,0.4264,3369.0,3368.7,0.29728]
[1735669003869,0.29726,3368.9,3368.7,0.29728]
[1735669005771,0.76123,3369.2,3369.0,0.29724]
[1735669005976,0.464,3369.2,3368.7,0.9198]
[1735669006175,0.464,3369.2,3369.1,0.29724]
[1735669006574,3.2078,3369.3,3369.2,0.29723]
[1735669008579,0.4626,3369.7,3369.1,3.2078]
[1735669008775,0.4626,3369.7,3369.6,0.2972]
[1735669009579,0.4626,3369.7,3369.1,3.2078]
[1735669009873,0.75979,3369.7,3369.1,3.2078]
[1735669010082,0.4626,3369.7,3369.1,3.2078]
[1735669010275,1.20558,3369.7,3369.1,3.2078]
[1735669010583,0.29723,3369.3,3369.1,3.50504]
[1735669011078,0.4626,3369.7,3369.1,3.2078]
[1735669011282,0.29721,3369.4,3369.3,0.29721]
[1735669011772,0.29721,3369.4,3369.2,0.29723]
[1735669011975,0.4626,3369.7,3368.8,1.344]
[1735669012192,0.2972,3369.6,3369.1,0.29724]
[1735669012479,0.29723,3369.3,3369.1,0.29724]
[1735669012870,0.29723,3369.3,3369.2,0.29723]
[1735669013070,0.29722,3369.4,3368.7,3.2078]
[1735669013379,0.29722,3369.4,3369.2,0.29723]
[1735669013580,0.29722,3369.4,3368.8,2.08718]
[1735669013779,0.29722,3369.4,3369.2,0.29723]
[1735669014681,0.4626,3369.7,3368.8,2.08718]
[1735669014882,0.29722,3369.4,3368.8,2.08718]
[1735669015075,0.2972,3369.6,3369.4,0.29721]
[1735669015481,0.2972,3369.6,3368.9,0.4221]
[1735669015676,0.2972,3369.6,3369.4,0.29721]
[1735669015877,0.2972,3369.6,3369.1,0.29724]
[1735669016081,0.4626,3369.7,3369.6,0.2972]
[1735669016387,0.43,3369.8,3369.7,0.29719]
[1735669018284,0.43,3369.8,3369.3,0.4403]
[1735669018487,0.72718,3369.8,3369.7,0.29719]
[1735669018682,0.72718,3369.8,3369.6,0.29719]
[1735669018885,0.43,3369.8,3369.3,0.4403]
[1735669019077,0.29722,3369.4,3369.2,3.50503]
[1735669019281,0.4413,3369.3,3369.2,3.50503]
[1735669020484,0.75679,3369.7,3369.5,0.2972]
[1735669020688,0.43,3369.8,3369.2,3.95088]
[1735669020890,0.43,3369.8,3369.7,0.29719]
[1735669021285,0.4413,3370.0,3369.6,3.2078]
[1735669021492,0.4413,3370.0,3369.9,0.29717]
[1735669022081,0.4497,3370.3,3369.8,1.344]
[1735669022281,0.4497,3370.3,3370.2,0.29714]
[1735669022587,1.19255,3370.3,3369.4,0.29721]
[1735669022787,2.23765021,3369.8,3369.2,3.2078]
[1735669022987,2.23765021,3369.8,3369.5,0.2972]
[1735669022988,1.19079,3369.7,3369.5,0.2972]
[1735669023292,0.29721,3369.5,3369.3,0.29722]
[1735669023491,0.8936,3369.7,3369.2,3.50503]
[1735669023696,0.29721,3369.5,3369.3,0.29722]
[1735669023994,0.8936,3369.7,3369.4,0.29721]
[1735669024196,0.29721,3369.5,3369.4,0.29721]
[1735669024391,0.29722,3369.4,3369.3,0.29722]
[1735669024783,0.29722,3369.3,3369.2,3.2078]
[1735669025994,0.4434,3369.6,3369.2,3.2078]
[1735669026195,0.29722,3369.3,3369.2,3.50503]
[1735669026495,0.29722,3369.4,3369.2,3.2078]
[1735669026800,0.29722,3369.3,3369.2,3.50503]
[1735669027298,0.29722,3369.3,3369.2,3.2078]
[1735669027487,0.4434,3369.6,3368.8,3.2078]
[1735669027488,0.29724,3369.2,3368.8,3.2078]
[1735669027690,0.29724,3369.2,3369.1,0.29724]
[1735669027890,0.29723,3369.3,3368.8,3.2078]
[1735669028096,0.29722,3369.3,3369.2,0.29723]
[1735669028292,3.6512,3369.6,3368.8,3.2078]
[1735669028492,0.29725,3369.1,3368.9,0.29725]
[1735669028698,2.98067021,3369.5,3368.9,0.29725]
[1735669028998,2.98067021,3369.5,3368.8,3.2078]
[1735669029301,0.29724,3369.2,3369.0,0.29724]
[1735669029494,0.29725,3369.0,3368.9,0.29725]
[1735669029997,0.29724,3369.1,3369.0,0.29725]
[1735669030496,0.29723,3369.3,3369.2,0.29723]
[1735669030699,3.6512,3369.6,3369.3,0.29722]
[1735669030994,3.6512,3369.6,3368.8,5.29497]
[1735669031204,0.29723,3369.3,3369.2,0.29723]
[1735669031897,3.6512,3369.6,3368.8,1.344]
[1735669032097,0.29725,3369.0,3368.9,0.29725]
[1735669032398,0.29725,3369.0,3368.8,1.344]
[1735669032399,0.29725,3369.1,3369.0,0.29724]
[1735669032800,0.29725,3369.0,3368.9,0.29725]
[1735669033705,5.44545021,3369.2,3368.0,3.2078]
[1735669033896,0.29732,3368.2,3367.7,1.3619]
[1735669034199,0.29732,3368.2,3367.9,7.29951218]
[1735669034404,0.29733,3368.1,3368.0,4.64669539]
[1735669034695,0.29732,3368.2,3368.1,0.29732]
[1735669034897,0.4321,3368.3,3368.2,0.29732]
[1735669035098,0.2973,3368.5,3368.3,0.29731]
[1735669035400,3.6326,3368.8,3368.6,0.29728]
[1735669035797,3.92987,3368.8,3368.6,0.29728]
[1735669036897,3.6326,3368.8,3368.7,0.29728]
[1735669037104,3.2078,3368.8,3368.7,0.29728]
[1735669037403,0.29723,3369.2,3369.1,0.29724]
[1735669037597,2.30035781,3369.4,3368.8,3.2078]
[1735669037904,2.30035781,3369.4,3369.3,0.29722]
[1735669038197,4.53800802,3369.4,3368.9,1.343]
[1735669038505,0.29725,3369.0,3368.9,1.343]
[1735669038999,0.29725,3369.0,3368.9,1.64026]
[1735669039397,3.2078,3369.2,3368.9,1.343]
[1735669039696,3.2078,3369.2,3368.8,4.64669539]
[1735669039697,5.44545021,3369.1,3368.8,4.01670539]
[1735669039896,5.44545021,3369.1,3367.7,3.2078]
[1735669039897,17.70125356,3369.1,3367.7,3.2078]
[1735669040196,0.29733,3368.1,3368.0,9.32888472]
[1735669040991,0.29733,3368.1,3368.0,9.62622472]
[1735669041300,0.29733,3368.2,3368.1,0.29732]
[1735669041690,0.29732,3368.3,3368.2,0.29731]
[1735669042115,4.55477562,3368.4,3368.3,0.29731]
[1735669042503,2.3110129,3368.4,3368.3,0.29731]
[1735669043910,0.2973,3368.5,3368.3,0.29731]
[1735669044301,0.2973,3368.4,3368.3,0.29731]
[1735669045002,2.3110129,3368.6,3368.3,0.29731]
[1735669045195,2.3110129,3368.6,3368.2,0.4335]
[1735669045196,2.6083029,3368.6,3368.4,0.2973]
[1735669045507,2.3110129,3368.5,3368.2,0.4335]
[1735669045698,4.84596311,3368.5,3368.3,0.29731]
[1735669046196,0.29731,3368.3,3367.7,3.2078]
[1735669046403,0.29734,3368.0,3367.8,0.29736]
[1735669046590,0.29735,3367.9,3367.8,0.4341]
[1735669046797,2.23765021,3368.1,3367.5,1.20668]
[1735669047101,2.23765021,3368.1,3367.2,3.2078]
[1735669047102,0.2974,3367.3,3367.2,3.2078]
[1735669047305,2.23765021,3367.4,3366.8,0.9093]
[1735669047605,0.29743,3366.9,3366.8,0.9093]
[1735669047904,0.29741,3367.2,3367.0,0.29742]
[1735669048206,0.4262,3367.5,3366.8,0.9093]
[1735669048405,0.29739,3367.4,3367.2,0.29741]
[1735669050203,3.2078,3367.6,3366.8,0.9093]
[1735669050408,2.88469884,3367.3,3367.0,0.29742]
[1735669050606,0.29741,3367.2,3367.0,0.29742]
[1735669051300,0.29741,3367.2,3366.8,0.9093]
[1735669051605,0.29743,3366.9,3366.8,1.20674]
[1735669051806,0.29743,3366.9,3366.8,0.9093]
[1735669052409,0.29743,3367.0,3366.8,1.20674]
[1735669053108,0.29743,3366.9,3366.8,0.9093]
[1735669053411,0.29743,3366.9,3366.8,0.4491]
[1735669053606,3.31319884,3367.3,3366.8,0.4491]
[1735669053801,3.31319884,3367.3,3365.6,0.29754]
[1735669053802,0.29753,3365.9,3365.6,0.29754]
[1735669054002,2.88469884,3366.1,3365.5,0.9053]
[1735669054511,0.29753,3365.9,3365.7,0.29753]
[1735669054909,0.29752,3366.0,3365.7,0.29753]
[1735669055105,2.88469884,3366.1,3365.7,0.29753]
[1735669055311,0.29753,3365.8,3365.5,1.20285]
[1735669055507,2.88469884,3366.1,3365.5,0.9053]
[1735669055806,0.29755,3365.6,3365.5,0.9053]
[1735669056209,3.2078,3365.9,3365.3,0.4653]
[1735669056414,0.29757,3365.4,3365.3,0.4653]
[1735669056608,2.88469884,3365.7,3364.9,1.343]
[1735669056802,0.29759,3365.1,3364.9,0.73721]
[1735669057309,0.29759,3365.1,3364.9,0.4396]
[1735669057912,3.2078,3365.5,3364.6,3.2078]
[1735669058408,0.29758,3365.3,3365.0,0.29759]
[1735669058606,0.29758,3365.3,3364.6,3.2078]
[1735669059010,0.29758,3365.3,3365.0,0.2976]
[1735669059908,0.29759,3365.2,3364.9,0.29761]
[1735669060207,3.2078,3365.5,3365.0,0.7555]
[1735669060416,0.29758,3365.3,3365.0,0.7555]
[1735669061414,0.29758,3365.3,3365.1,0.29759]
[1735669061815,0.29757,3365.4,3365.1,0.29759]
[1735669062014,3.2078,3365.9,3365.2,1.344]
[1735669062210,3.50533,3365.9,3365.6,0.29755]
[1735669062510,3.50533,3365.9,3365.2,2.2596]
[1735669062511,0.29757,3365.4,3365.2,2.2596]
[1735669062714,2.88469884,3365.7,3365.2,2.2596]
[1735669062915,0.29758,3365.3,3365.2,0.9156]
[1735669064613,0.29757,3365.4,3365.2,0.9156]
[1735669064817,3.2078,3365.5,3365.2,1.21318]
[1735669065113,0.29758,3365.4,3365.2,1.21318]
[1735669065310,3.2078,3365.5,3365.2,0.9156]
[1735669065507,3.2078,3365.5,3365.2,1.21318]
[1735669065713,0.29758,3365.3,3365.2,1.21318]
[1735669066424,3.2078,3365.5,3365.2,0.9156]
[1735669066615,0.29757,3365.4,3365.3,0.29757]
[1735669066914,3.2078,3365.5,3365.4,0.29757]
[1735669068414,3.2078,3366.4,3366.3,0.29749]
[1735669068618,0.72357,3366.5,3365.8,0.74383]
[1735669068813,0.29746,3366.7,3366.6,0.29746]
[1735669069206,0.29746,3366.7,3366.1,0.74377]
[1735669069207,3.2078,3366.8,3366.1,0.74377]
[1735669069406,3.2078,3366.8,3366.7,0.29745]
[1735669070612,0.29742,3367.1,3367.0,0.29742]
[1735669071711,3.2078,3367.2,3366.5,0.74368]
[1735669071907,0.29744,3366.9,3366.8,0.29744]
[1735669075622,3.2078,3367.2,3366.4,3.2078]
[1735669075815,3.2078,3367.2,3366.5,0.74368]
[1735669076120,0.29742,3367.1,3367.0,0.29742]
[1735669076825,3.50521,3367.2,3367.1,0.29742]
[1735669078620,0.29749,3366.3,3366.2,0.29749]
[1735669078817,0.29747,3366.5,3366.3,0.29748]
[1735669079023,6.09249884,3366.8,3366.0,0.8731]
[1735669079221,0.29749,3366.4,3366.3,0.29749]
[1735669079421,0.29749,3366.4,3366.2,0.29749]
[1735669079618,0.29747,3366.5,3366.0,0.8731]
[1735669079925,6.09249884,3367.2,3366.1,1.342]
[1735669080225,2.24103827,3367.1,3366.1,2.08577]
[1735669080425,2.24103827,3366.8,3366.6,0.01256613]
[1735669080721,0.29745,3366.7,3366.6,0.01256613]
[1735669081028,2.53848827,3366.8,3366.6,0.31002613]
[1735669081325,0.29745,3366.7,3366.6,0.01256613]
[1735669084026,0.73165,3366.7,3366.6,0.01256613]
[1735669086122,0.4342,3366.7,3366.6,0.01568257]
[1735669086323,0.73165,3366.7,3366.6,0.01568257]
[1735669091929,0.73165,3366.7,3366.6,0.01882664]
[1735669094032,0.29745,3366.7,3366.6,0.31628664]
[1735669094222,2.24103827,3366.8,3366.6,0.01882664]
[1735669094421,2.24103827,3366.8,3366.7,0.29745]
[1735669094628,2.3110129,3366.9,3366.7,1.3321]
[1735669094831,2.3110129,3366.9,3366.8,0.29744]
[1735669095136,2.3110129,3366.9,3366.8,0.31626664]
[1735669096034,2.24103827,3367.1,3366.8,0.01882664]
[1735669096232,0.29743,3366.9,3366.8,0.01882664]
[1735669096732,0.73693,3366.9,3366.8,0.01882664]
[1735669097431,1.18342126,3366.9,3366.8,0.01882664]
[1735669097631,0.88599126,3366.9,3366.8,0.02206345]
[1735669097831,1.18342126,3366.9,3366.8,0.02206345]
[1735669100033,4.66658327,3366.9,3366.8,0.02206345]
[1735669100835,4.66658327,3366.9,3366.8,0.31950345]
[1735669100836,4.22708327,3366.9,3366.8,0.31950345]
[1735669101141,3.92965327,3366.9,3366.8,0.31950345]
[1735669101645,3.92965327,3366.9,3366.8,3.52730345]
[1735669101840,2.32287319,3366.9,3366.8,3.94840345]
[1735669102538,2.62030319,3366.9,3366.8,0.02206345]